lending/lending_fUSD_20250621
["ID","MTS","AMOUNT","RATE_DAILY","PERIOD"]
[366845846,1750507835178,-500.0,0.00023967,2]
[366845847,1750507835187,-500.0,0.00023967,2]
[366845848,1750507835198,-500.0,0.00023967,2]
[366845849,1750507835208,-500.0,0.00023967,2]
[366845850,1750507835218,-500.0,0.00023967,2]
[366845851,1750507835228,-500.0,0.00023967,2]
[366845852,1750507835238,-500.0,0.00023967,2]
[366845853,1750507835247,-500.0,0.00023967,2]
[366845854,1750507835257,-500.0,0.00023967,2]
[366845855,1750507835267,-500.0,0.00023967,2]
[366845856,1750507835277,-500.0,0.00023967,2]
[366845857,1750507835287,-500.0,0.00023967,2]
[366845858,1750507835296,-500.0,0.00023967,2]
[366845859,1750507835306,-500.0,0.00023967,2]
[366845860,1750507835315,-500.0,0.00023967,2]
[366845861,1750507835324,-500.0,0.00023967,2]
[366845862,1750507835334,-500.0,0.00023967,2]
[366845863,1750507835344,-500.0,0.00023967,2]
[366845864,1750507835353,-500.0,0.00023967,2]
[366845865,1750507835363,-500.0,0.00023967,2]
[366845866,1750507835373,-500.0,0.00023967,2]
[366845867,1750507835383,-500.0,0.00023967,2]
[366845868,1750507835393,-500.0,0.00023967,2]
[366845869,1750507835402,-500.0,0.00023967,2]
[366845870,1750507835412,-500.0,0.00023967,2]
[366845871,1750507835421,-500.0,0.00023967,2]
[366845872,1750507835431,-500.0,0.00023967,2]
[366845873,1750507835441,-500.0,0.00023967,2]
[366845874,1750507835450,-500.0,0.00023967,2]
[366845875,1750507835460,-500.0,0.00023967,2]
[366845876,1750507835470,-500.0,0.00023967,2]
[366845877,1750507835480,-500.0,0.00023967,2]
[366845878,1750507835490,-500.0,0.00023967,2]
[366845879,1750507835500,-500.0,0.00023967,2]
[366845880,1750507835510,-500.0,0.00023967,2]
[366845881,1750507835520,-649.0,0.00023967,2]
[366845882,1750507835529,-314.40399035,0.00023983,2]
[366845883,1750507835540,-314.40399035,0.00024021,2]
[366845884,1750507835549,-314.40399035,0.0002406,2]
[366845885,1750507835559,-500.0,0.00024064,2]
[366845886,1750507835569,-500.0,0.00024064,2]
[366845887,1750507835578,-500.0,0.00024064,2]
[366845888,1750507835587,-500.0,0.00024064,2]
[366845889,1750507835597,-500.0,0.00024064,2]
[366845890,1750507835607,-500.0,0.00024064,2]
[366845891,1750507835616,-500.0,0.00024064,2]
[366845892,1750507835626,-500.0,0.00024064,2]
[366845893,1750507835640,-500.0,0.00024064,2]
[366845894,1750507835649,-500.0,0.00024064,2]
[366845895,1750507835659,-500.0,0.00024064,2]
[366845896,1750507835669,-500.0,0.00024064,2]
[366845897,1750507835679,-500.0,0.00024064,2]
[366845898,1750507835688,-500.0,0.00024064,2]
[366845899,1750507835698,-500.0,0.00024064,2]
[366845900,1750507835707,-500.0,0.00024064,2]
[366845901,1750507835717,-500.0,0.00024064,2]
[366845902,1750507835727,-500.0,0.00024064,2]
[366845903,1750507835736,-500.0,0.00024064,2]
[366845904,1750507835745,-500.0,0.00024064,2]
[366845905,1750507835755,-500.0,0.00024064,2]
[366845906,1750507835765,-500.0,0.00024064,2]
[366845907,1750507835774,-500.0,0.00024064,2]
[366845908,1750507835784,-500.0,0.00024064,2]
[366845909,1750507835794,-500.0,0.00024064,2]
[366845910,1750507835803,-500.0,0.00024064,2]
[366845911,1750507835812,-500.0,0.00024064,2]
[366845912,1750507835821,-500.0,0.00024064,2]
[366845913,1750507835830,-500.0,0.00024064,2]
[366845914,1750507835839,-500.0,0.00024064,2]
[366845915,1750507835848,-500.0,0.00024064,2]
[366845916,1750507835857,-500.0,0.00024064,2]
[366845917,1750507835867,-500.0,0.00024064,2]
[366845918,1750507835876,-500.0,0.00024064,2]
[366845919,1750507835886,-500.0,0.00024064,2]
[366845920,1750507835895,-500.0,0.00024064,2]
[366845921,1750507835905,-500.0,0.00024064,2]
[366845922,1750507835914,-500.0,0.00024064,2]
[366845923,1750507835923,-500.0,0.00024064,2]
[366845924,1750507835932,-500.0,0.00024064,2]
[366845925,1750507835942,-500.0,0.00024064,2]
[366845926,1750507835951,-500.0,0.00024064,2]
[366845927,1750507835961,-500.0,0.00024064,2]
[366845928,1750507835970,-500.0,0.00024064,2]
[366845929,1750507835980,-500.0,0.00024064,2]
[366845930,1750507835989,-500.0,0.00024064,2]
[366845931,1750507835999,-500.0,0.00024064,2]
[366845932,1750507836009,-500.0,0.00024064,2]
[366845933,1750507836018,-500.0,0.00024064,2]
[366845934,1750507836027,-500.0,0.00024064,2]
[366845935,1750507836037,-500.0,0.00024064,2]
[366845936,1750507836047,-500.0,0.00024064,2]
[366845937,1750507836057,-500.0,0.00024064,2]
[366845938,1750507836066,-500.0,0.00024064,2]
[366845939,1750507836076,-500.0,0.00024064,2]
[366845940,1750507836086,-500.0,0.00024064,2]
[366845941,1750507836095,-500.0,0.00024064,2]
[366845942,1750507836104,-500.0,0.00024064,2]
[366845943,1750507836114,-500.0,0.00024064,2]
[366845944,1750507836123,-500.0,0.00024064,2]
[366845945,1750507836133,-500.0,0.00024064,2]
[366845946,1750507836143,-500.0,0.00024064,2]
[366845947,1750507836152,-500.0,0.00024064,2]
[366845948,1750507836162,-500.0,0.00024064,2]
[366845949,1750507836171,-500.0,0.00024064,2]
[366845950,1750507836180,-500.0,0.00024064,2]
[366845951,1750507836190,-500.0,0.00024064,2]
[366845952,1750507836200,-500.0,0.00024064,2]
[366845953,1750507836209,-500.0,0.00024064,2]
[366845954,1750507836220,-500.0,0.00024064,2]
[366845955,1750507836229,-500.0,0.00024064,2]
[366845956,1750507836239,-500.0,0.00024064,2]
[366845957,1750507836248,-500.0,0.00024064,2]
[366845958,1750507836258,-500.0,0.00024064,2]
[366845959,1750507836267,-500.0,0.00024064,2]
[366845960,1750507836277,-500.0,0.00024064,2]
[366845961,1750507836286,-500.0,0.00024064,2]
[366845962,1750507836296,-500.0,0.00024064,2]
[366845963,1750507836305,-500.0,0.00024064,2]
[366845964,1750507836315,-500.0,0.00024064,2]
[366845965,1750507836324,-500.0,0.00024064,2]
[366845966,1750507836333,-500.0,0.00024064,2]
[366845967,1750507836343,-500.0,0.00024064,2]
[366845968,1750507836352,-500.0,0.00024064,2]
[366845969,1750507836362,-500.0,0.00024064,2]
[366845970,1750507836372,-500.0,0.00024064,2]
[366845971,1750507836382,-500.0,0.00024064,2]
[366845972,1750507836391,-500.0,0.00024064,2]
[366845973,1750507836402,-500.0,0.00024064,2]
[366845974,1750507836412,-500.0,0.00024064,2]
[366845975,1750507836421,-500.0,0.00024064,2]
[366845976,1750507836430,-500.0,0.00024064,2]
[366845977,1750507836440,-500.0,0.00024064,2]
[366845978,1750507836450,-500.0,0.00024064,2]
[366845979,1750507836459,-500.0,0.00024064,2]
[366845980,1750507836469,-500.0,0.00024064,2]
[366845981,1750507836479,-500.0,0.00024064,2]
[366845982,1750507836488,-500.0,0.00024064,2]
[366845983,1750507836498,-500.0,0.00024064,2]
[366845984,1750507836508,-500.0,0.00024064,2]
[366845985,1750507836517,-500.0,0.00024064,2]
[366845986,1750507836527,-500.0,0.00024064,2]
[366845987,1750507836536,-500.0,0.00024064,2]
[366845988,1750507836546,-500.0,0.00024064,2]
[366845989,1750507836555,-500.0,0.00024064,2]
[366845990,1750507836564,-500.0,0.00024064,2]
[366845991,1750507836574,-500.0,0.00024064,2]
[366845992,1750507836583,-500.0,0.00024064,2]
[366845993,1750507836592,-500.0,0.00024064,2]
[366845994,1750507836602,-500.0,0.00024064,2]
[366845995,1750507836612,-500.0,0.00024064,2]
[366845996,1750507836623,-500.0,0.00024064,2]
[366845997,1750507836637,-500.0,0.00024064,2]
[366845998,1750507836648,-500.0,0.00024064,2]
[366845999,1750507836659,-500.0,0.00024064,2]
[366846000,1750507836668,-500.0,0.00024064,2]
[366846001,1750507836678,-500.0,0.00024064,2]
[366846002,1750507836688,-500.0,0.00024064,2]
[366846003,1750507836697,-500.0,0.00024064,2]
[366846004,1750507836707,-500.0,0.00024064,2]
[366846005,1750507836717,-500.0,0.00024064,2]
[366846006,1750507836726,-500.0,0.00024064,2]
[366846007,1750507836735,-500.0,0.00024064,2]
[366846008,1750507836746,-500.0,0.00024064,2]
[366846009,1750507836755,-500.0,0.00024064,2]
[366846010,1750507836765,-500.0,0.00024064,2]
[366846011,1750507836775,-500.0,0.00024064,2]
[366846012,1750507836785,-500.0,0.00024064,2]
[366846013,1750507836797,-500.0,0.00024064,2]
[366846014,1750507836806,-500.0,0.00024064,2]
[366846015,1750507836816,-214.9074268,0.00024064,30]
[366846016,1750507836827,-956.195,0.00024069,5]
[366846017,1750507836838,-1000.0,0.00024074,2]
[366846018,1750507836849,-2500.0,0.00024074,2]
[366846019,1750507836858,-798.09,0.00024096,2]
[366846020,1750507836868,-461.86,0.00024096,2]
[366846021,1750507836878,-1593.89,0.00024096,2]
[366846022,1750507836888,-461.95,0.00024096,2]
[366846023,1750507836898,-461.95,0.00024096,2]
[366846024,1750507836907,-314.40399035,0.00024098,2]
[366846025,1750507836917,-1386.02,0.00024111,2]
[366846026,1750507836926,-528.69,0.00024111,2]
[366846027,1750507836936,-314.40399035,0.00024137,2]
[366846028,1750507836945,-424.85,0.00024164,2]
[366846029,1750507836955,-9999.99,0.00024174,2]
[366846030,1750507836965,-8043.07,0.00024174,2]
[366846031,1750507836975,-150.99,0.00024174,2]
[366846032,1750507836984,-314.40399035,0.00024176,2]
[366846033,1750507836994,-314.40399035,0.00024214,2]
[366846034,1750507837003,-555.75145905,0.0002426,2]
[366846035,1750507837013,-402.80061782,0.00024348,11]
[366846036,1750507837025,-2500.0,0.00024353,2]
[366846037,1750507837035,-806.60483184,0.000244,2]
[366846038,1750507837044,-355.19433777,0.000244,2]
[366846039,1750507837054,-1000.0,0.00024421,2]
[366846040,1750507837063,-182.85802,0.0002444,2]
[366846041,1750507837073,-215.0738,0.00024446,2]
[366846042,1750507837083,-156.587,0.00024446,2]
[366846043,1750507837092,-2000.0,0.00024484,2]
[366846044,1750507837102,-13444.45557501,0.000245,2]
[366846045,1750507837884,-126216.05612499,0.000245,2]
[366846046,1750507837894,-400.0,0.000245,8]
[366846047,1750507837903,-375.8012859,0.00024581,2]
[366846048,1750507837913,-5000.0,0.00024581,2]
[366846049,1750507837922,-188.67878216,0.00024587,2]
[366846050,1750507837932,-671.26474836,0.00024597,2]
[366846051,1750507837941,-2470.839036,0.000246,2]
[366846052,1750507837951,-2000.0,0.000246,2]
[366846053,1750507837960,-894.556144,0.000246,2]
[366846054,1750507837969,-800.0,0.000246,8]
[366846055,1750507837979,-200.0,0.000246,2]
[366846056,1750507837988,-250.37,0.00024614,2]
[366846057,1750507837997,-555.75145905,0.00024652,2]
[366846058,1750507838007,-151.0,0.00024669,7]
[366846059,1750507838016,-222.177312,0.00024669,7]
[366846060,1750507838025,-250.43,0.00024669,2]
[366846061,1750507838035,-301.58,0.00024669,2]
[366846062,1750507838044,-500.0,0.0002467,2]
[366846063,1750507838054,-600.91536243,0.0002467,2]
[366846064,1750507838063,-1000.0,0.0002467,2]
[366846065,1750507838072,-1000.0,0.0002467,2]
[366846066,1750507838082,-500.0,0.0002467,2]
[366846067,1750507838091,-1000.0,0.0002467,2]
[366846068,1750507838101,-501.8520891,0.00024673,2]
[366846069,1750507838111,-159.99635359,0.00024673,2]
[366846071,1750507838120,-135831.70254703,0.00024674,4]
[366846072,1750507838132,-2829.44074735,0.00024674,4]
[366846073,1750507838246,-564.25840876,0.00024674,4]
[366846074,1750507838258,-1012.92391151,0.00024674,4]
[366846075,1750507838270,-6421.04946845,0.00024674,4]
[366846076,1750507838333,-372.51000098,0.00024674,4]
[366846077,1750507838376,-26137.91798139,0.00024674,4]
[366846078,1750507838389,-3439.58788607,0.00024674,4]
[366846079,1750507838405,-3650.89198,0.00024674,4]
[366846080,1750507838417,-387.13222533,0.00024674,4]
[366846082,1750507841485,-156.0,0.00022409,2]
[366846083,1750507841495,-314.40399035,0.00024253,2]
[366846084,1750507841504,-314.40399035,0.00024291,2]
[366846085,1750507841514,-31937.2184563,0.00024674,4]
[366846086,1750507841526,-17821.80298149,0.00024674,4]
[366846087,1750507841536,-208.47587924,0.00024677,2]
[366846088,1750507841802,-291.92813507,0.00024677,2]
[366846089,1750507841815,-374.07186493,0.00024677,2]
[366846090,1750507841825,-500.0,0.00024679,2]
[366846091,1750507841834,-500.0,0.00024679,2]
[366846092,1750507841843,-154.17726397,0.00024679,2]
[366846093,1750507841852,-327.61566878,0.00024679,2]
[366846094,1750507841862,-484.84154375,0.00024679,2]
[366846095,1750507841871,-500.0,0.00024679,2]
[366846096,1750507841881,-500.0,0.00024679,2]
[366846097,1750507841890,-500.0,0.00024679,2]
[366846098,1750507841900,-500.0,0.00024679,2]
[366846099,1750507841910,-500.0,0.00024679,2]
[366846100,1750507841919,-500.0,0.00024679,2]
[366846101,1750507841928,-500.0,0.00024679,2]
[366846102,1750507841938,-500.0,0.00024679,2]
[366846103,1750507841947,-287.3,0.00024679,2]
[366846104,1750507841956,-500.0,0.00024679,2]
[366846105,1750507841965,-500.0,0.00024679,2]
[366846106,1750507841974,-516.21044769,0.00024679,2]
[366846107,1750507841983,-500.0,0.00024679,2]
[366846108,1750507841992,-500.0,0.00024679,2]
[366846109,1750507842001,-500.0,0.00024679,2]
[366846110,1750507842010,-500.0,0.00024679,2]
[366846111,1750507842019,-1719.1001686,0.00024681,2]
[366846112,1750507842028,-23545.3761343,0.00024681,2]
[366846113,1750507842038,-81222.42165636,0.00024681,2]
[366846114,1750507842062,-1315.92,0.00024681,2]
[366846115,1750507842099,-2527.10535977,0.00024681,2]
[366846116,1750507842111,-10569.0,0.00024681,2]
[366846117,1750507842135,-189004.57724957,0.00024681,2]
[366846118,1750507842145,-216.0649995,0.00024681,2]
[366846119,1750507842154,-52484.8382981,0.00024681,2]
[366846120,1750507842163,-259.27799975,0.00024681,2]
[366846121,1750507842173,-3604.6297827,0.00024682,2]
[366846122,1750507842182,-13096.2213716,0.00024682,2]
[366846123,1750507842192,-151.0,0.00024686,2]
[366846124,1750507842202,-151.0,0.00024686,2]
[366846125,1750507842212,-1459.0,0.00024687,2]
[366846126,1750507842222,-253.16090457,0.00024687,2]
[366846127,1750507842231,-240462.82433038,0.00024687,2]
[366846128,1750507842240,-151.0,0.00024687,7]
[366846129,1750507842250,-151.0,0.00024687,7]
[366846130,1750507842259,-151.0,0.00024687,7]
[366846131,1750507842269,-151.0,0.00024687,7]
[366846132,1750507842278,-225.804174,0.00024687,7]
[366846133,1750507842287,-151.0,0.00024687,7]
[366846134,1750507842297,-151.0,0.00024687,7]
[366846135,1750507842307,-243.516087,0.00024687,7]
[366846136,1750507842316,-243.516087,0.00024687,7]
[366846137,1750507842325,-151.0,0.00024687,7]
[366846138,1750507842335,-151.0,0.00024687,7]
[366846139,1750507842345,-242.513944,0.00024687,7]
[366846140,1750507842354,-151.0,0.00024687,7]
[366846141,1750507842363,-156.099058,0.00024687,7]
[366846142,1750507842373,-151.0,0.00024687,7]
[366846143,1750507842383,-151.0,0.00024687,7]
[366846144,1750507842393,-151.0,0.00024687,7]
[366846145,1750507842403,-151.0,0.00024687,7]
[366846146,1750507842412,-151.977438,0.00024687,7]
[366846147,1750507842422,-151.0,0.00024687,7]
[366846148,1750507842431,-151.0,0.00024687,7]
[366846149,1750507842440,-151.0,0.00024687,7]
[366846150,1750507842450,-151.0,0.00024687,7]
[366846151,1750507842459,-151.0,0.00024687,7]
[366846152,1750507842468,-200.0,0.00024687,2]
[366846153,1750507842478,-300.0,0.00024687,2]
[366846154,1750507842488,-500.0,0.00024689,2]
[366846155,1750507842498,-579.09853949,0.00024689,2]
[366846156,1750507842507,-225.74195997,0.00024689,2]
[366846157,1750507842517,-500.0,0.00024689,2]
[366846158,1750507842527,-500.0,0.00024689,2]
[366846159,1750507842537,-500.0,0.00024689,2]
[366846160,1750507842546,-500.0,0.00024689,2]
[366846161,1750507842556,-500.0,0.00024689,2]
[366846162,1750507842565,-500.0,0.00024689,2]
[366846163,1750507842575,-500.0,0.00024689,2]
[366846164,1750507842584,-500.0,0.00024689,2]
[366846165,1750507842594,-500.0,0.00024689,2]
[366846166,1750507842604,-500.0,0.00024689,2]
[366846167,1750507842614,-500.0,0.00024689,2]
[366846168,1750507842624,-500.0,0.00024689,2]
[366846169,1750507842637,-500.0,0.00024689,2]
[366846170,1750507842647,-500.0,0.00024689,2]
[366846171,1750507842656,-500.0,0.00024689,2]
[366846172,1750507842665,-510.2675013,0.00024689,2]
[366846173,1750507842676,-500.0,0.00024689,2]
[366846174,1750507842685,-500.0,0.00024689,2]
[366846175,1750507842695,-500.0,0.00024689,2]
[366846176,1750507842706,-463.01111777,0.00024689,2]
[366846177,1750507842716,-1136.47103453,0.00024689,2]
[366846178,1750507842726,-1136.47103453,0.00024689,2]
[366846179,1750507842736,-1136.47103453,0.00024689,2]
[366846180,1750507842745,-1136.47103453,0.00024689,2]
[366846181,1750507842754,-1136.47103453,0.00024689,2]
[366846182,1750507842763,-1136.47103453,0.00024689,2]
[366846183,1750507842773,-1136.47103453,0.00024689,2]
[366846184,1750507842783,-1136.47103453,0.00024689,2]
[366846185,1750507842793,-1136.47103453,0.00024689,2]
[366846186,1750507842802,-1136.47103453,0.00024689,2]
[366846187,1750507842811,-1136.47103453,0.00024689,2]
[366846188,1750507842821,-1136.47103453,0.00024689,2]
[366846189,1750507842832,-174.10778243,0.00024689,2]
[366846190,1750507842840,-1200.97344461,0.00024689,2]
[366846191,1750507842849,-1200.97344461,0.00024689,2]
[366846192,1750507842859,-5000.0,0.0002469,5]
[366846193,1750507842869,-5000.0,0.0002469,6]
[366846194,1750507842878,-5000.0,0.0002469,7]
[366846195,1750507842889,-5000.0,0.0002469,8]
[366846196,1750507842898,-5000.0,0.0002469,9]
[366846197,1750507842910,-5000.0,0.0002469,21]
[366846198,1750507842918,-151.0,0.0002469,7]
[366846199,1750507842927,-151.0,0.0002469,7]
[366846200,1750507842937,-3159291.69709941,0.00024692,4]
[366846201,1750507842948,-854.00661147,0.00024692,4]
[366846202,1750507843881,-855.0,0.00022409,2]
[366846203,1750507843890,-17090.51543581,0.00024692,4]
[366846204,1750507843902,-11964.10914325,0.00024692,4]
[366846205,1750507843951,-43921.98830996,0.00024692,4]
[366846206,1750507843998,-22529.24474669,0.00024692,4]
[366846207,1750507844130,-1756.57108813,0.00024692,4]
[366846208,1750507846212,-314.40399035,0.0002433,2]
[366846209,1750507846222,-41750.39077803,0.00024692,4]
[366846210,1750507846293,-994.08067206,0.00024692,4]
[366846211,1750507846574,-2459.79939969,0.00024692,4]
[366846212,1750507848942,-2063.75097717,0.00024692,4]
[366846213,1750507848954,-541.91421838,0.00024692,4]
[366846241,1750508579976,199.27,0.00013699,2]
[366846254,1750508763385,3197.18,8e-05,2]
[366846255,1750508763411,5682.5428835,8e-05,2]
[366846459,1750508972804,435.0,0.00024657,120]
[366846500,1750509032827,-194.03260337,0.0002,2]
[366846501,1750509032837,-368.94409938,0.0002,3]
[366846502,1750509032847,-231.05590062,0.0002,5]
[366846503,1750509032857,-176.13041347,0.0002,2]
[366846504,1750509032866,-1000.0,0.0002,2]
[366846505,1750509032876,-199.27,0.00020187,2]
[366846506,1750509032886,-1000.0,0.00021,2]
[366846507,1750509032896,-201.0,0.00021129,2]
[366846508,1750509032906,-233.66451537,0.00021156,2]
[366846509,1750509032916,-340.0,0.000214,2]
[366846510,1750509032926,-1200.0,0.00021603,2]
[366846511,1750509032936,-300.0,0.00021604,2]
[366846512,1750509032947,-300.0,0.00021604,2]
[366846513,1750509032956,-1500.0,0.00021605,2]
[366846514,1750509032965,-11147.01,0.00021605,2]
[366846515,1750509032976,-160.0,0.00022,2]
[366846516,1750509032998,-1000.0,0.00022,2]
[366846517,1750509033020,-2500.0,0.00022,2]
[366846518,1750509033044,-168.0,0.00022002,2]
[366846519,1750509033068,-168.0,0.00022037,2]
[366846520,1750509033097,-300.0,0.00022072,2]
[366846521,1750509033128,-61242.77912848,0.00022073,2]
[366846522,1750509033161,-5000.0041753,0.00022073,2]
[366846523,1750509033181,-7952.55523652,0.00022073,2]
[366846525,1750509037418,-1221.80266972,0.00022073,2]
[366846526,1750509037475,-33102.92620855,0.00022073,2]
[366846527,1750509037487,-2757.1847512,0.00022073,2]
[366846528,1750509037499,-1118.80887896,0.00022073,2]
[366846529,1750509037548,-397.29227572,0.00022073,2]
[366846530,1750509037593,-101912.47667555,0.00022073,2]
[366846531,1750509037603,-246.18,0.00022207,2]
[366846532,1750509037613,-250.85,0.00022207,2]
[366846533,1750509037622,-305.94,0.00022284,2]
[366846534,1750509037632,-340.0,0.000223,2]
[366846535,1750509037641,-168.0,0.00022382,2]
[366846536,1750509037651,-201.0,0.0002247,4]
[366846537,1750509037660,-168.0,0.00022497,2]
[366846538,1750509037669,-880.29,0.000225,2]
[366846539,1750509037679,-1000.0,0.0002253,2]
[366846540,1750509037688,-150.99,0.00022562,2]
[366846541,1750509037698,-150.99,0.00022562,2]
[366846542,1750509037707,-250.0,0.00022576,2]
[366846543,1750509037717,-2751.0,0.00022576,2]
[366846544,1750509037726,-200.0,0.00022576,2]
[366846545,1750509037736,-503.0,0.00022608,2]
[366846546,1750509037745,-150.0,0.00022687,2]
[366846547,1750509037754,-151.0,0.00022815,2]
[366846548,1750509037763,-151.0,0.00022815,2]
[366846549,1750509037773,-151.0,0.00022815,2]
[366846551,1750509037782,-151.0,0.00022815,2]
[366846554,1750509037791,-151.0,0.00022815,2]
[366846556,1750509037800,-285.80488263,0.00022815,2]
[366846558,1750509037809,-637.28,0.00022818,2]
[366846560,1750509037818,-23900.0,0.00022829,2]
[366846562,1750509037828,-250.18,0.00022843,2]
[366846565,1750509037837,-727.52,0.00022866,2]
[366846566,1750509037846,-164.1,0.00022869,2]
[366846567,1750509037855,-349.09386899,0.000229,8]
[366846568,1750509037865,-157.20199527,0.000229,2]
[366846569,1750509037874,-157.20199517,0.000229,2]
[366846570,1750509037883,-157.20199517,0.000229,2]
[366846571,1750509037892,-157.20199517,0.000229,2]
[366846572,1750509037901,-157.20199517,0.000229,2]
[366846573,1750509037911,-157.20199517,0.000229,2]
[366846574,1750509037920,-395.39846883,0.00022904,2]
[366846575,1750509037929,-157.20199517,0.00022989,2]
[366846576,1750509037938,-1000.0,0.00023,2]
[366846577,1750509037947,-160.0,0.00023014,7]
[366846578,1750509037956,-151.0,0.00023077,2]
[366846579,1750509037966,-1957.856,0.00023077,2]
[366846580,1750509037975,-207.4,0.00023077,2]
[366846581,1750509037984,-2030.296672,0.00023132,2]
[366846582,1750509037994,-157.20199517,0.00023136,2]
[366846583,1750509038003,-2105.41764886,0.00023187,2]
[366846584,1750509038012,-167.09,0.00023189,2]
[366846585,1750509038021,-340.0,0.000232,2]
[366846586,1750509038031,-804.0,0.00023234,2]
[366846587,1750509038040,-2183.31810187,0.00023242,2]
[366846588,1750509038049,-950.93,0.0002325,2]
[366846589,1750509038058,-160.26,0.0002325,2]
[366846590,1750509038068,-3119.75,0.00023257,2]
[366846591,1750509038078,-253.26,0.00023257,2]
[366846592,1750509038087,-157.20199517,0.00023283,2]
[366846593,1750509038096,-2264.10087164,0.00023297,2]
[366846594,1750509038106,-200.0,0.0002335,7]
[366846595,1750509038115,-2347.87260389,0.00023352,2]
[366846596,1750509038125,-349.09386877,0.00023383,9]
[366846597,1750509038134,-2434.74389024,0.00023407,2]
[366846598,1750509038144,-157.20199517,0.0002343,2]
[366846599,1750509038154,-2524.82941416,0.00023462,2]
[366846600,1750509038163,-503.0,0.00023481,2]
[366846601,1750509038172,-250.33,0.00023507,2]
[366846602,1750509038181,-252.13,0.00023507,2]
[366846603,1750509038190,-300.13,0.00023507,2]
[366846604,1750509038199,-254.79,0.00023508,2]
[366846605,1750509038207,-301.84,0.00023508,2]
[366846606,1750509038216,-253.37,0.00023508,2]
[366846607,1750509038226,-254.66,0.00023508,2]
[366846608,1750509038235,-305.13,0.00023508,2]
[366846609,1750509038244,-250.76,0.00023508,2]
[366846610,1750509038254,-251.24,0.00023508,2]
[366846611,1750509038263,-301.33,0.00023508,2]
[366846612,1750509038272,-250.3,0.00023508,2]
[366846613,1750509038281,-249.2,0.00023508,2]
[366846614,1750509038290,-301.18,0.00023508,2]
[366846615,1750509038299,-251.01,0.00023508,2]
[366846616,1750509038308,-252.33,0.00023508,2]
[366846617,1750509038319,-301.61,0.00023508,2]
[366846618,1750509038328,-300.0,0.00023508,2]
[366846619,1750509038337,-638.0,0.00023508,2]
[366846620,1750509038347,-803.0,0.00023508,2]
[366846621,1750509038356,-2005.0,0.00023508,2]
[366846622,1750509038365,-1278.0,0.00023508,2]
[366846623,1750509038375,-591.0,0.00023508,2]
[366846624,1750509038383,-559.0,0.00023508,2]
[366846625,1750509038393,-928.0,0.00023508,2]
[366846626,1750509038402,-1676.0,0.00023508,2]
[366846627,1750509038411,-1161.0,0.00023508,2]
[366846628,1750509038420,-4095.0,0.00023508,2]
[366846629,1750509038429,-946.0,0.00023508,2]
[366846630,1750509038438,-156.0,0.00023508,2]
[366846631,1750509038447,-157.20199517,0.00023577,2]
[366846632,1750509038457,-666.0,0.00023596,2]
[366846633,1750509038466,-516.59,0.000237,7]
[366846634,1750509038475,-500.0,0.000237,7]
[366846635,1750509038484,-500.0,0.000237,7]
[366846636,1750509038494,-500.0,0.000237,7]
[366846637,1750509038503,-480.51,0.000237,7]
[366846638,1750509038514,-157.20199517,0.00023724,2]
[366846639,1750509038525,-201.0,0.0002381,6]